{"text_format":"1","workbook":"xlsx","n_sheets":3,"sheets":["الاعدادات","مسير شهر يوليو","البحث"],"not_rendered":{"charts":0,"images":0,"macros":1,"external_links":0,"defined_names":5,"comments":1,"pivot_tables":0},"unopened":[],"bounds":{"document_bytes":16777216,"sheet_cells":100000,"rows_first":2000,"rows_last":500,"rows_between":2000,"halvings":0,"cell_chars":16384,"cell_head_chars":4096},"cells_cut":0,"cells_raw":0,"read":"whole","date_system":"1900"}

{"sheet":"الاعدادات","index":0,"n_rows":161,"n_cols":7,"rows_kept":161,"cut":false,"hidden":false,"merged":[]}
["السنة","الشهر","الايام","الاجازات الرسمية","الفرع","الوردية","الاسم"]
[2026,"يوليو",null,null,"الفرع 1","الصباحية","وليد شهاوى احمد"]
[null,null,null,null,"الفرع 2","المسائية ","اسامة حسن محمد"]
[null,null,null,null,"الفرع 3",null,"محمود احمد مصرى"]
[null,null,null,null,"الفرع 4",null,"مصطفى مسعود سيد"]
[null,null,null,null,"الفرع 5",null,"احمد على محمد"]
[null,null,null,null,"الفرع 6",null,"احمد نزية مرزوق"]
[null,null,null,null,"الفرع 7",null,"محمد طه عبدالغنى بحيرى"]
[null,null,null,null,"الفرع 8",null,"فيفى قرنى سيد"]
[null,null,null,null,"الفرع 9",null,"هيثم احمد محمود"]
[null,null,null,null,"الفرع 10",null,"اسامة صادق"]
[null,null,null,null,"الفرع 11",null,"يوسف محمد وحيد"]
[null,null,null,null,"الفرع 12",null,"رضا عاشور"]
[null,null,null,null,"الفرع 13",null,"محمد فايز"]
[null,null,null,null,"الفرع 14",null,"احمد عبد الظاهر ابو سريع"]
[null,null,null,null,"الفرع 15",null,"عزت محمد على"]
[null,null,null,null,"الفرع 16",null,"جميل عبد المنعم حسن"]
[null,null,null,null,"الفرع 17",null,"محمد عبد المنعم"]
[null,null,null,null,"الفرع 18",null,"احمد اسامة"]
[null,null,null,null,"الفرع 19",null,"يحيى شعبان"]
[null,null,null,null,"الفرع 20",null,"ايمن عبد الفتاح "]
[null,null,null,null,null,null,"حسام محمد غريب"]
[null,null,null,null,null,null,"عبد الناصر عبد الحميد احمد"]
[]
[null,null,null,null,null,null,"مدحت عبد الغنى"]
[null,null,null,null,null,null,"ربيع على عبد ربه"]
[null,null,null,null,null,null,"محمد عبد النبي الجزار"]
[null,null,null,null,null,null,"عطا عبيد حسن"]
[null,null,null,null,null,null,"محمد حلمى عبد الحليم"]
[null,null,null,null,null,null,"محمد عبد الله محمد"]
[null,null,null,null,null,null,"محمد سلطان فتحى عمر"]
[null,null,null,null,null,null,"عمر حمدى منصور"]
[null,null,null,null,null,null,"محمد ماجد محمد"]
[null,null,null,null,null,null,"محمد طه"]
[null,null,null,null,null,null,"هيثم احمد محمود"]
[null,null,null,null,null,null,"يوسف محمد وحيد"]
[null,null,null,null,null,null,"عبد الرحمن عادل"]
[null,null,null,null,null,null,"محمد محمود الحنفى"]
[null,null,null,null,null,null,"تامر حسين محمد"]
[null,null,null,null,null,null,"محمد سيد على"]
[null,null,null,null,null,null,"عاطف سعيد محمد"]
[null,null,null,null,null,null,"محمود عبد الطاهر سعد"]
[null,null,null,null,null,null,"حسام محمد غريب "]
[null,null,null,null,null,null,"ايمن عبد الفتاح"]
[null,null,null,null,null,null,"شريف مدحت"]
[null,null,null,null,null,null,"احمد سميرعبد اللطيف"]
[null,null,null,null,null,null,"شعبان احمد عطوه"]
[null,null,null,null,null,null,"خالد فوزى محمد"]
[null,null,null,null,null,null,"امير مصطفى عيد"]
[null,null,null,null,null,null,"عاطف حسن بيومى"]
[null,null,null,null,null,null,"الشوره على الشوره"]
[null,null,null,null,null,null,"حسن عطية محمد"]
[null,null,null,null,null,null,"احمد محمد سعد"]
[null,null,null,null,null,null,"محمد ماجد محمد"]
[]
[]
[null,null,null,null,null,null,"حنفى محمود الحنفى"]
[null,null,null,null,null,null,"احمد على مصطفى"]
[null,null,null,null,null,null,"عبد الرحمن شريف محمد"]
[null,null,null,null,null,null,"محمد رضا عبد الفتاح"]
[null,null,null,null,null,null,"ناجح حميده عبد الفتاح"]
[null,null,null,null,null,null,"حسام محمد غريب"]
[null,null,null,null,null,null,"ايمن عبد الفتاح"]
[null,null,null,null,null,null,"حسام محمد غريب"]
[null,null,null,null,null,null,"شريف مدحت"]
[null,null,null,null,null,null,"صبري عبد الرؤوف نصر"]
[null,null,null,null,null,null,"عبد الرحمن عادل"]
[null,null,null,null,null,null,"خالد محمد مصطفى"]
[null,null,null,null,null,null,"ايه عطية"]
[null,null,null,null,null,null,"عمرو بلال رجب"]
[null,null,null,null,null,null,"رضا عاشور "]
[null,null,null,null,null,null,"بديل راحات"]
[null,null,null,null,null,null,"حمدى محمود النمكي"]
[null,null,null,null,null,null,"عبدالرحمن عمرو كامل"]
[null,null,null,null,null,null,"محمد مصطفى عبدالفتاح "]
[null,null,null,null,null,null,"دينا قنديل"]
[null,null,null,null,null,null,"سليمان يونس سليمان"]
[null,null,null,null,null,null,"خالد عبد الشافى"]
[null,null,null,null,null,null,"سلطان عبد العال"]
[null,null,null,null,null,null,"ايمن عبد الفتاح"]
[null,null,null,null,null,null,"احمد اسامة"]
[null,null,null,null,null,null,"اشرف محمد محمود"]
[null,null,null,null,null,null,"عمرو عبد السلام"]
[null,null,null,null,null,null,"سماح سليمان"]
[]
[null,null,null,null,null,null,"اسامة راغب"]
[null,null,null,null,null,null,"فتحى بكر"]
[null,null,null,null,null,null,"احمد اسماعيل"]
[null,null,null,null,null,null,"يوسف محمد وحيد"]
[null,null,null,null,null,null,"عبد الرحمن عبد الحميد غانم"]
[null,null,null,null,null,null,"محمود سعيد محمد"]
[null,null,null,null,null,null,"حنان محمد"]
[null,null,null,null,null,null,"رضا عاشور "]
[null,null,null,null,null,null,"عمرو عبد السلام"]
[null,null,null,null,null,null,"هشام ابو زيد عبد الباقى"]
[null,null,null,null,null,null,"فتحى ماهر محمد"]
[null,null,null,null,null,null,"احمد على عبد الرحمن"]
[null,null,null,null,null,null,"بديل راحات"]
[null,null,null,null,null,null,"اسلام عبد المنصف محمد"]
[null,null,null,null,null,null,"محمد عبد الحميد عبد الحليم"]
[null,null,null,null,null,null,"احمد فاروق على"]
[null,null,null,null,null,null,"منى محمود محمد"]
[null,null,null,null,null,null,"هيثم احمد محمود"]
[null,null,null,null,null,null,"عمرو بلال رجب"]
[null,null,null,null,null,null,"رضا عاشور "]
[null,null,null,null,null,null,"عمرو عبد السلام"]
[null,null,null,null,null,null,"اسامة صادق"]
[null,null,null,null,null,null,"محمد دسوقى"]
[null,null,null,null,null,null,"هانى محمود حافظ"]
[null,null,null,null,null,null,"سيد عبد الوهاب عبد السلام"]
[null,null,null,null,null,null,"يحيى شعبان "]
[]
[null,null,null,null,null,null,"عمرو احمد "]
[null,null,null,null,null,null,"اسامة صادق"]
[null,null,null,null,null,null,"احمد عزازى"]
[null,null,null,null,null,null,"احمد اسامة"]
[null,null,null,null,null,null,"محمود محروس"]
[null,null,null,null,null,null,"حسين محمد"]
[null,null,null,null,null,null,"اكرم بكري محمد مصطفى"]
[null,null,null,null,null,null,"ايمان فوزى"]
[null,null,null,null,null,null,"عمرو بلال رجب"]
[null,null,null,null,null,null,"يوسف محمد وحيد"]
[null,null,null,null,null,null,"رضا عاشور "]
[null,null,null,null,null,null,"محمود محروس"]
[null,null,null,null,null,null,"حسين عبد العال"]
[null,null,null,null,null,null,"بديل راحات"]
[null,null,null,null,null,null,"سيد محى الدين"]
[null,null,null,null,null,null,"قنديل ابو كريشة"]
[null,null,null,null,null,null,"سليم محروس"]
[null,null,null,null,null,null,"نانا السيد"]
[null,null,null,null,null,null,"رضا عاشور "]
[]
[null,null,null,null,null,null,"احمد السيد مقدام"]
[null,null,null,null,null,null,"شهاب الدين فرجانى"]
[null,null,null,null,null,null,"كمال صابر انور"]
[null,null,null,null,null,null,"ايمن عبد الفتاح "]
[null,null,null,null,null,null,"هشام دياب"]
[null,null,null,null,null,null,"عبد العليم السيد"]
[null,null,null,null,null,null,"رضا عاشور "]
[null,null,null,null,null,null,"عمرو عبد السلام"]
[null,null,null,null,null,null,"هانى عبد الجواد"]
[null,null,null,null,null,null,"محمود عبد الهادى"]
[null,null,null,null,null,null,"يحيى شعبان"]
[null,null,null,null,null,null,"ايمن عبد الفتاح"]
[]
[null,null,null,null,null,null,"خاطر عبد الفتاح"]
[null,null,null,null,null,null,"اسامة صادق"]
[]
[null,null,null,null,null,null,"ايمن صادق"]
[null,null,null,null,null,null,"بديل راحات"]
[null,null,null,null,null,null,"محمد عاشور محمد"]
[null,null,null,null,null,null,"محمد فايز "]
[null,null,null,null,null,null,"اسامة راغب"]
[null,null,null,null,null,null,"دينا قنديل محمود"]
[null,null,null,null,null,null,"اسامة صادق"]
[]
[null,null,null,null,null,null,"محمد احمد حسين"]
[null,null,null,null,null,null,"احمد سمير عبد اللطيف"]
[null,null,null,null,null,null,"احمد رضوان قرني"]
[null,null,null,null,null,null,"ايمن عبد الفتاح "]
[null,null,null,null,null,null,"يوسف محمد وحيد"]

{"sheet":"مسير شهر يوليو","index":1,"n_rows":158,"n_cols":43,"rows_kept":158,"cut":false,"hidden":false,"merged":[[1,4,1,21],[1,22,1,25],[1,26,1,29],[1,30,1,32],[1,33,1,35],[5,37,5,41]]}
[]
[null,{"$f":"TODAY()","v":"2026-07-23"},null,null,"كشف الحضور لأفراد أمن ",null,null,null,null,null,null,null,null,null,null,null,null,null,null,null,null,null,"عن شهر /",null,null,null,"يوليو",null,null,null,"لسنة /",null,null,2026]
[null,null,null,null,null,null,null,null,null,null,null,null,null,null,null,null,null,null,null,null,null,null,null,null,null,null,null,null,null,null,null,null,null,null,null,null,"من",null,null,null,null,null,"2026-07-01"]
[null,null,null,null,null,null,null,null,null,null,null,null,null,null,null,null,null,null,null,null,null,null,null,null,null,null,null,null,null,null,null,null,null,null,null,null,"الى",null,null,null,null,null,{"$f":"EOMONTH(AQ3,0)","v":"2026-07-31"}]
[null,null,null,null,null,null,null,"اجازة","اجازة","اجازة",null,null,null,null,null,"اجازة","اجازة",null,null,null,null,null,"اجازة","اجازة",null,null,null,null,"اجازة","اجازة","اجازة",null,null,null,null,null,"اجازة"]
[null,null,null,null,null,null,{"$f":"TEXT(G7,\"DDD\")","v":"Wed"},"Thu","Fri","Sat","Sun","Mon","Tue","Wed","Thu","Fri","Sat","Sun","Mon","Tue","Wed","Thu","Fri","Sat","Sun","Mon","Tue","Wed","Thu","Fri","Sat","Sun","Mon","Tue","Wed","Thu","Fri","اجمالى ايام",null,null,null,null,"ملاحظات"]
["المنطقة","الفرع","الوردية","م","الاسم","الوظيفة",{"$f":"AQ3","v":"2026-07-01"},{"$f":"G7+1","v":"2026-07-02"},"2026-07-03","2026-07-04","2026-07-05","2026-07-06","2026-07-07","2026-07-08","2026-07-09","2026-07-10","2026-07-11","2026-07-12","2026-07-13","2026-07-14","2026-07-15","2026-07-16","2026-07-17","2026-07-18","2026-07-19","2026-07-20","2026-07-21","2026-07-22","2026-07-23","2026-07-24","2026-07-25","2026-07-26","2026-07-27","2026-07-28","2026-07-29","2026-07-30","2026-07-31","العمل","بديل","$$$","الاجازة","الغياب"]
["A","الفرع 1","الصباحية",1,"وليد شهاوى احمد","فرد امن","حضور","اجازة","اجازة","اجازة","حضور","حضور","حضور","حضور","حضور","حضور","حضور","حضور","حضور","حضور","حضور","حضور","حضور","حضور","حضور","حضور",null,null,null,"اجازة","اجازة",null,null,null,null,null,null,{"$f":"COUNTIF(G8:AK8,\"حضور\")","v":17},{"$f":"COUNTIF(G8:AK8,\"بديل\")","v":0},{"$f":"COUNTIF(G8:AK8,\"$$$\")","v":0},{"$f":"COUNTIF(G8:AK8,\"اجازة\")","v":5},{"$f":"COUNTIF(G8:AK8,\"غياب\")","v":0}]
["A","الفرع 1","الصباحية",2,"اسامة حسن محمد","فرد امن","حضور","حضور","حضور","حضور","حضور","حضور","حضور","اجازة","اجازة","اجازة","اجازة","حضور","حضور","حضور","حضور","اجازة","حضور","حضور","حضور","حضور",null,null,null,null,null,null,null,null,null,null,null,15,0,0,5,0]
["A","الفرع 1","الصباحية",3,"محمود احمد مصرى","فرد امن","اجازة","اجازة","اجازة","اجازة","حضور","حضور","حضور","حضور","حضور","حضور","حضور","حضور","حضور","حضور","حضور","حضور","حضور","حضور","حضور","حضور",null,null,null,null,null,null,null,null,null,null,null,16,0,0,4,0]
["A","الفرع 1","الصباحية",4,"مصطفى مسعود سيد","فرد امن","حضور","حضور","حضور","حضور","اجازة","حضور","حضور","حضور","حضور","حضور","حضور","اجازة","اجازة","اجازة","غياب","حضور","حضور","حضور","حضور","حضور",null,null,null,null,null,null,null,null,null,null,null,15,0,0,4,1]
["A","الفرع 1","الصباحية",5,"احمد على محمد","فرد امن","حضور","حضور","حضور","حضور","حضور","اجازة","حضور","حضور","اجازة","اجازة","حضور","حضور","حضور","حضور","حضور","حضور","حضور","حضور","حضور","حضور",null,null,null,null,null,null,null,null,null,null,null,17,0,0,3,0]
["A","الفرع 1","الصباحية",6,"احمد نزية مرزوق","فرد امن","حضور","حضور","حضور","حضور","حضور","حضور","اجازة","اجازة","حضور","حضور","حضور","حضور","حضور","حضور","اجازة","اجازة","حضور","حضور","حضور","حضور",null,null,null,null,null,null,null,null,null,null,null,16,0,0,4,0]
["A","الفرع 1","الصباحية",7,"محمد طه عبدالغنى بحيرى","فرد امن",null,null,null,null,null,"حضور","حضور","حضور","حضور","حضور","حضور","حضور","حضور","حضور","حضور","حضور","بديل","بديل","حضور","حضور",null,null,null,null,null,null,null,null,null,null,null,13,2,0,0,0]
["A","الفرع 1","الصباحية","*","هيثم احمد محمود","بديل",null,null,null,null,null,null,null,null,null,null,null,null,"حضور","حضور","حضور","حضور",null,null,null,null,null,null,null,null,null,null,null,null,null,null,null,4,0,0,0,0]
["A","الفرع 1","الصباحية","*","اسامة صادق","بديل",null,"حضور","اجازة","حضور",null,null,null,null,null,"اجازة",null,null,null,null,null,null,"اجازة",null,"اجازة",null,null,null,null,null,null,null,null,null,null,null,"اجازة",2,0,0,5,0]
["A","الفرع 1","الصباحية","*","يوسف محمد وحيد","بديل",null,null,null,null,"اجازة","اجازة","حضور","اجازة",null,"اجازة","اجازة","اجازة","اجازة","اجازة","اجازة","اجازة","اجازة","اجازة","اجازة","اجازة","اجازة","اجازة","اجازة","اجازة","اجازة","اجازة","اجازة","اجازة","اجازة","اجازة","اجازة",1,0,0,25,0]
["A","الفرع 1","الصباحية","*","رضا عاشور","بديل","حضور",null,"حضور",null,null,null,null,null,null,null,null,null,null,null,null,null,null,null,null,null,null,null,null,null,null,null,null,null,null,null,null,2,0,0,0,0]
["A","الفرع 1","الصباحية",7,"محمد فايز","فرد امن","حضور","حضور","حضور","حضور","منقول","منقول","منقول","منقول","منقول","منقول","منقول","منقول","منقول","منقول","منقول","منقول","منقول","منقول","منقول","منقول","منقول","منقول","منقول","منقول","منقول","منقول","منقول","منقول","منقول","منقول","منقول",4,0,0,0,0]
["A","الفرع 1","المسائية",1,"احمد عبد الظاهر ابو سريع","فرد امن","حضور","حضور","اجازة","اجازة","حضور","حضور","حضور","حضور","حضور","حضور","حضور","حضور","حضور","حضور","حضور","حضور","اجازة","اجازة","حضور","حضور",null,null,null,null,null,null,null,null,null,null,null,{"$f":"COUNTIF(G20:AK20,\"حضور\")","v":16},{"$f":"COUNTIF(G20:AK20,\"بديل\")","v":0},{"$f":"COUNTIF(G20:AK20,\"$$$\")","v":0},{"$f":"COUNTIF(G20:AK20,\"اجازة\")","v":4},{"$f":"COUNTIF(G20:AK20,\"غياب\")","v":0}]
["A","الفرع 1","المسائية",2,"عزت محمد على","فرد امن","حضور","غياب","غياب","حضور","حضور","حضور","حضور","حضور","حضور","اجازة","اجازة","حضور","حضور","حضور","حضور","حضور","حضور","حضور","حضور","حضور",null,null,null,"اجازة","اجازة",null,null,null,null,null,null,16,0,0,4,2]
["A","الفرع 1","المسائية",4,"جميل عبد المنعم حسن","فرد امن","حضور","حضور","حضور","حضور","اجازة","حضور","حضور","حضور","حضور","حضور","حضور","اجازة","حضور","حضور","حضور","حضور","حضور","حضور","اجازة","حضور",null,null,null,null,null,"اجازة",null,null,null,null,null,17,0,0,4,0]
["A","الفرع 1","المسائية",5,"محمد عبد المنعم","فرد امن","حضور","حضور","حضور","حضور","حضور","حضور","حضور","حضور","حضور","حضور","حضور","اجازة","اجازة","اجازة","اجازة","حضور","حضور","حضور","حضور","حضور",null,null,null,null,null,null,null,null,null,null,null,16,0,0,4,0]
["A","الفرع 1","المسائية","*","احمد اسامة","بديل",null,null,null,null,null,null,null,null,"حضور",null,null,"حضور","حضور","حضور","حضور","حضور","حضور","حضور","حضور",null,null,null,null,null,null,null,null,null,null,null,null,9,0,0,0,0]
["A","الفرع 1","المسائية","*","يحيى شعبان","بديل",null,null,null,null,null,null,null,null,null,null,null,null,"حضور","حضور","حضور",null,null,null,null,null,null,null,null,null,null,null,null,null,null,null,null,3,0,0,0,0]
[null,"الفرع 1","المسائية","*","ايمن عبد الفتاح ",null,null,null,null,null,null,null,null,null,null,null,null,null,null,null,null,null,null,null,null,"حضور"]
["A","الفرع 1","المسائية","*","حسام محمد غريب","بديل",null,null,null,null,null,null,null,null,null,null,null,null,null,null,null,null,null,null,"حضور",null,null,null,null,null,null,null,null,null,null,null,null,{"$f":"COUNTIF(G27:AK27,\"حضور\")","v":1},{"$f":"COUNTIF(G27:AK27,\"بديل\")","v":0},{"$f":"COUNTIF(G27:AK27,\"$$$\")","v":0},{"$f":"COUNTIF(G27:AK27,\"اجازة\")","v":0},{"$f":"COUNTIF(G27:AK27,\"غياب\")","v":0}]
["A","الفرع 1","المسائية",3,"عبد الناصر عبد الحميد احمد","فرد امن","حضور","اجازة","حضور","حضور","حضور","حضور","حضور","حضور","اجازة","حضور","حضور","ترك العمل","ترك العمل","ترك العمل","ترك العمل","ترك العمل","ترك العمل","ترك العمل","ترك العمل","ترك العمل","ترك العمل","ترك العمل","ترك العمل","ترك العمل","ترك العمل","ترك العمل","ترك العمل","ترك العمل","ترك العمل","ترك العمل","ترك العمل",9,0,0,2,0]
["A","الفرع 1","المسائية","*",null,"بديل",null,null,null,null,null,null,null,null,null,null,null,null,null,null,null,null,null,null,null,null,null,null,null,null,null,null,null,null,null,null,null,0,0,0,0,0]
["A","الفرع 2","الصباحية",1,"مدحت عبد الغنى","فرد امن","حضور","اجازة","اجازة","اجازة","حضور","حضور","حضور","حضور","حضور","حضور","حضور","حضور","حضور","حضور","حضور","حضور","حضور","حضور","حضور","حضور",null,null,null,null,null,null,null,null,null,null,"اجازة",{"$f":"COUNTIF(G30:AK30,\"حضور\")","v":17},{"$f":"COUNTIF(G30:AK30,\"بديل\")","v":0},{"$f":"COUNTIF(G30:AK30,\"$$$\")","v":0},{"$f":"COUNTIF(G30:AK30,\"اجازة\")","v":4},{"$f":"COUNTIF(G30:AK30,\"غياب\")","v":0}]
["A","الفرع 2","الصباحية",6,"ربيع على عبد ربه","فرد امن","حضور","حضور","حضور","حضور","حضور","حضور","حضور","حضور","حضور","حضور","حضور","حضور","حضور","حضور","حضور","حضور","اجازة","اجازة","اجازة","غياب",null,null,null,null,null,null,null,null,null,null,null,16,0,0,3,1]
["A","الفرع 2","الصباحية",3,"محمد عبد النبي الجزار","فرد امن","حضور","حضور","حضور","حضور","$$$","حضور","غياب","حضور","حضور","حضور","حضور","حضور","حضور","$$$","$$$","$$$","حضور","حضور","حضور","حضور",null,null,null,null,null,null,null,null,null,null,null,15,0,4,0,1]
["A","الفرع 2","الصباحية",2,"عطا عبيد حسن","فرد امن","حضور","حضور","حضور","حضور","حضور","حضور","حضور","حضور","اجازة","اجازة","اجازة","اجازة","اجازة","غياب","حضور","حضور","حضور","حضور","حضور","حضور",null,null,null,null,null,null,null,null,null,null,null,14,0,0,5,1]
["A","الفرع 2","الصباحية",5,"محمد حلمى عبد الحليم","فرد امن","حضور","حضور","حضور","حضور","حضور","حضور","حضور","حضور","حضور","حضور","حضور","حضور","حضور","حضور","حضور","حضور","حضور","حضور","اجازة","اجازة","اجازة","اجازة",null,null,null,null,null,null,null,null,null,18,0,0,4,0]
["A","الفرع 2","الصباحية",4,"محمد عبد الله محمد","فرد امن","حضور","حضور","حضور","حضور","حضور","حضور","حضور","حضور","حضور","حضور","حضور","حضور","حضور","حضور","حضور","حضور","حضور","حضور","حضور","حضور",null,null,"اجازة","اجازة","اجازة","اجازة",null,null,null,null,null,20,0,0,4,0]
["A","الفرع 2","الصباحية",7,"محمد سلطان فتحى عمر","فرد امن",null,"حضور","حضور","حضور","حضور","حضور","حضور","حضور","حضور","حضور","حضور","حضور","حضور","اجازة","اجازة","اجازة","اجازة","حضور","حضور","حضور",null,null,null,null,null,null,null,null,null,null,null,15,0,0,4,0]
["A","الفرع 2","الصباحية",8,"عمر حمدى منصور","فرد امن",null,null,null,null,null,"حضور","حضور","حضور","حضور","حضور","حضور","حضور","حضور","حضور","غياب","حضور","حضور","حضور","حضور","حضور",null,null,null,null,null,null,null,null,null,null,null,14,0,0,0,1]
["A","الفرع 2","الصباحية","*","محمد ماجد محمد","بديل",null,null,null,null,null,null,null,null,null,null,null,null,null,null,null,null,null,null,"حضور","حضور",null,null,null,null,null,null,null,null,null,null,null,2,0,0,0,0]
["A","الفرع 2","الصباحية","*","محمد طه","بديل",null,null,null,null,null,null,null,null,null,null,null,null,null,null,null,null,"حضور","حضور",null,null,null,null,null,null,null,null,null,null,null,null,null,2,0,0,0,0]
["A","الفرع 2","الصباحية","*","هيثم احمد محمود","بديل",null,null,null,null,null,null,null,null,null,null,null,null,null,null,null,null,"حضور",null,null,null,null,null,null,null,null,null,null,null,null,null,null,1,0,0,0,0]
["A","الفرع 2","الصباحية","*","يوسف محمد وحيد","بديل","غياب","حضور",null,null,"اجازة","اجازة",null,"اجازة",null,"اجازة","اجازة","اجازة","اجازة","اجازة","اجازة","اجازة","اجازة","اجازة","اجازة","اجازة","اجازة","اجازة","اجازة","اجازة","اجازة","اجازة","اجازة","اجازة","اجازة","اجازة","اجازة",1,0,0,25,1]
["A","الفرع 2","الصباحية","*","عبد الرحمن عادل","بديل",null,"بديل","بديل","بديل",null,null,null,null,null,null,null,null,null,null,null,null,null,null,null,null,null,null,null,null,null,null,null,null,null,null,null,0,3,0,0,0]
["A","الفرع 2","المسائية",1,"محمد محمود الحنفى","فرد امن","اجازة","اجازة","اجازة","اجازة","حضور","حضور","حضور","حضور","حضور","حضور","حضور","حضور","حضور","حضور","حضور","حضور","حضور","حضور","حضور","حضور",null,null,null,null,null,null,null,null,null,null,null,{"$f":"COUNTIF(G43:AK43,\"حضور\")","v":16},{"$f":"COUNTIF(G43:AK43,\"بديل\")","v":0},{"$f":"COUNTIF(G43:AK43,\"$$$\")","v":0},{"$f":"COUNTIF(G43:AK43,\"اجازة\")","v":4},{"$f":"COUNTIF(G43:AK43,\"غياب\")","v":0}]
["A","الفرع 2","المسائية",2,"تامر حسين محمد","فرد امن","حضور","حضور","حضور","حضور","حضور","حضور","حضور","حضور","حضور","اجازة","اجازة","حضور","حضور","حضور","حضور","حضور","اجازة","حضور","حضور","حضور",null,null,null,"اجازة",null,null,null,null,null,null,null,17,0,0,4,0]
["A","الفرع 2","المسائية",3,"محمد سيد على","فرد امن","حضور","حضور","حضور","حضور","اجازة","اجازة","حضور","حضور","حضور","حضور","حضور","اجازة","اجازة","حضور","حضور","حضور","حضور","حضور","حضور","حضور",null,null,null,null,null,null,null,null,null,null,null,16,0,0,4,0]
["A","الفرع 2","المسائية",4,"عاطف سعيد محمد","فرد امن","حضور","حضور","حضور","حضور","حضور","حضور","حضور","حضور","اجازة","حضور","حضور","حضور","حضور","حضور","حضور","حضور","حضور","حضور","حضور","حضور",null,null,null,null,null,null,null,"اجازة","اجازة","اجازة","اجازة",19,0,0,5,0]
["A","الفرع 2","المسائية ",5,"محمود عبد الطاهر سعد","فرد امن",null,null,null,null,null,"حضور","حضور","حضور","حضور","حضور","حضور","حضور","حضور","اجازة","حضور","حضور","حضور","حضور","حضور","حضور",null,null,null,null,null,null,null,null,null,null,null,14,0,0,1,0]
["A","الفرع 2","المسائية ","*","حسام محمد غريب ",null,null,null,null,null,null,null,null,null,null,null,null,null,"حضور","غياب",null,null,null,null,null,null,null,null,null,null,null,null,null,null,null,null,null,1,0,0,0,1]
["A","الفرع 2","المسائية","*","ايمن عبد الفتاح","بديل",null,null,"اجازة","حضور",null,"اجازة",null,"اجازة",null,"اجازة","اجازة","اجازة","اجازة","اجازة",null,null,null,null,null,null,null,null,null,null,null,null,null,null,null,null,null,1,0,0,8,0]
["A","الفرع 2","المسائية","*","شريف مدحت","بديل ",null,null,null,null,"حضور",null,null,null,null,null,null,null,null,null,null,null,null,null,null,null,null,null,null,null,null,null,null,null,null,null,null,1,0,0,0,0]
["A","الفرع 2","المسائية",5,"احمد سميرعبد اللطيف","فرد امن","حضور","حضور","حضور","حضور","منقول","منقول","منقول","منقول","منقول","منقول","منقول","منقول","منقول","منقول","منقول","منقول","منقول","منقول","منقول","منقول","منقول","منقول","منقول","منقول","منقول","منقول","منقول","منقول","منقول","منقول","منقول",4,0,0,0,0]
["A","الفرع 3","الصباحية",1,"شعبان احمد عطوه","فرد امن","حضور","حضور","حضور","حضور","حضور","اجازة","اجازة","اجازة","غياب","غياب","حضور","حضور","حضور","حضور","حضور","حضور","حضور","حضور","حضور","حضور",null,null,null,null,null,null,null,null,null,null,null,{"$f":"COUNTIF(G52:AK52,\"حضور\")","v":15},{"$f":"COUNTIF(G52:AK52,\"بديل\")","v":0},{"$f":"COUNTIF(G52:AK52,\"$$$\")","v":0},{"$f":"COUNTIF(G52:AK52,\"اجازة\")","v":3},{"$f":"COUNTIF(G52:AK52,\"غياب\")","v":2}]
["A","الفرع 3","الصباحية",2,"خالد فوزى محمد","فرد امن","حضور","حضور","حضور","حضور","حضور","حضور","حضور","حضور","حضور","حضور","اجازة","اجازة","اجازة","اجازة","حضور","حضور","حضور","حضور","حضور","حضور",null,null,null,null,null,null,null,null,null,null,null,16,0,0,4,0]
["A","الفرع 3","الصباحية",3,"امير مصطفى عيد","فرد امن","حضور","حضور","اجازة","اجازة","غياب","حضور","حضور","حضور","حضور","حضور","حضور","حضور","حضور","حضور","حضور","حضور","حضور","حضور","حضور","حضور",null,null,null,null,null,null,null,null,null,null,null,17,0,0,2,1]
["A","الفرع 3","الصباحية",4,"عاطف حسن بيومى","فرد امن","اجازة","اجازة","حضور","حضور","حضور","حضور","حضور","حضور","حضور","حضور","حضور","حضور","حضور","حضور","حضور","حضور","اجازة","اجازة","حضور","حضور",null,null,null,null,null,null,null,null,null,null,null,16,0,0,4,0]
["A","الفرع 3","الصباحية",5,"الشوره على الشوره","فرد امن","حضور","حضور","حضور","حضور","اجازة","حضور","حضور","حضور","حضور","حضور","حضور","حضور","حضور","حضور","اجازة","اجازة","حضور","حضور","حضور","حضور",null,null,null,null,null,"اجازة",null,null,null,null,null,17,0,0,4,0]
["A","الفرع 3","الصباحية",6,"حسن عطية محمد","فرد امن","حضور","حضور","حضور","حضور","حضور","حضور","حضور","حضور","غياب","حضور","حضور","حضور","حضور","حضور","حضور","حضور","حضور","حضور","حضور","حضور",null,null,null,null,null,null,null,"اجازة",null,null,null,19,0,0,1,1]
["A","الفرع 3","الصباحية",7,"احمد محمد سعد","فرد امن","حضور","حضور","حضور","حضور","حضور","حضور","حضور","حضور","حضور","حضور","حضور","حضور","حضور","حضور","حضور","حضور","حضور","حضور","حضور","حضور",null,null,null,null,null,null,"اجازة","اجازة","اجازة","اجازة","اجازة",20,0,0,5,0]
["A","الفرع 3","الصباحية","*","محمد ماجد محمد","بديل",null,null,null,null,null,null,null,null,null,null,null,null,"حضور","حضور","حضور","حضور","حضور","حضور",null,null,null,null,null,null,null,null,null,null,null,null,null,6,0,0,0,0]
["A","الفرع 3","الصباحية","*",null,"بديل",null,null,null,null,null,null,null,null,null,null,null,null,null,null,null,null,null,null,null,null,null,null,null,null,null,null,null,null,null,null,null,0,0,0,0,0]
["A","الفرع 3","الصباحية","*",null,"بديل",null,null,null,null,null,null,null,null,null,null,null,null,null,null,null,null,null,null,null,null,null,null,null,null,null,null,null,null,null,null,null,0,0,0,0,0]
["A","الفرع 3","المسائية",1,"حنفى محمود الحنفى","فرد امن","حضور","اجازة","اجازة","حضور","حضور","حضور","حضور","حضور","حضور","حضور","حضور","حضور","حضور","حضور","حضور","حضور","اجازة","اجازة","حضور","حضور",null,null,null,null,null,null,null,null,null,null,null,{"$f":"COUNTIF(G62:AK62,\"حضور\")","v":16},{"$f":"COUNTIF(G62:AK62,\"بديل\")","v":0},{"$f":"COUNTIF(G62:AK62,\"$$$\")","v":0},{"$f":"COUNTIF(G62:AK62,\"اجازة\")","v":4},{"$f":"COUNTIF(G62:AK62,\"غياب\")","v":0}]
["A","الفرع 3","المسائية",2,"احمد على مصطفى","فرد امن","حضور","حضور","حضور","اجازة","اجازة","حضور","حضور","حضور","حضور","حضور","حضور","حضور","حضور","اجازة","اجازة","اجازة","اجازة","اجازة","حضور","حضور",null,null,null,null,null,null,null,null,null,null,null,13,0,0,7,0]
["A","الفرع 3","المسائية",3,"عبد الرحمن شريف محمد","فرد امن","اجازة","حضور","حضور","حضور","حضور","حضور","حضور","حضور","حضور","اجازة","حضور","حضور","حضور","حضور","حضور","اجازة","حضور","حضور","حضور","حضور",null,null,null,null,"اجازة",null,null,null,null,null,null,17,0,0,4,0]
["A","الفرع 3","المسائية",4,"محمد رضا عبد الفتاح","فرد امن","حضور","حضور","اجازة","اجازة","حضور","حضور","حضور","حضور","حضور","حضور","اجازة","حضور","حضور","حضور","حضور","حضور","اجازة","حضور","حضور","حضور",null,null,null,"اجازة",null,null,null,null,null,null,null,16,0,0,5,0]
["A","الفرع 3","المسائية",5,"ناجح حميده عبد الفتاح","فرد امن","حضور","حضور","حضور","حضور","حضور","حضور","حضور","حضور","اجازة","اجازة","غياب","حضور","حضور","حضور","حضور","حضور","حضور","حضور","حضور","حضور",null,null,"اجازة","اجازة",null,null,null,null,null,null,null,17,0,0,4,1]
["A","الفرع 3","المسائية",null,"حسام محمد غريب",null,null,null,null,null,null,null,null,null,null,null,null,null,null,null,"حضور","حضور","حضور",null,null,null,null,null,null,null,null,null,null,null,null,null,null,3,0,0,0,0]
["A","الفرع 3","المسائية","*","ايمن عبد الفتاح","بديل","حضور",null,"اجازة",null,null,"اجازة",null,"اجازة",null,"اجازة","اجازة","اجازة","اجازة","اجازة",null,null,null,"حضور",null,null,null,null,null,null,null,null,null,null,null,null,null,2,0,0,8,0]
["A","الفرع 3","المسائية","*","حسام محمد غريب","بديل",null,null,null,null,null,null,null,null,null,null,null,null,null,null,null,null,null,"حضور",null,null,null,null,null,null,null,null,null,null,null,null,null,1,0,0,0,0]
["A","الفرع 3","المسائية","*","شريف مدحت",null,null,"حضور","حضور","حضور",null,null,null,null,null,null,null,null,null,null,null,null,null,null,null,null,null,null,null,null,null,null,null,null,null,null,null,3,0,0,0,0]
["A","الفرع 4","الصباحية",1,"صبري عبد الرؤوف نصر","فرد امن","حضور","حضور","حضور","حضور","حضور","حضور","حضور","حضور","حضور","اجازة","اجازة","حضور","حضور","حضور","حضور","حضور","حضور","حضور","حضور","حضور",null,null,null,"اجازة","اجازة",null,null,null,null,null,null,{"$f":"COUNTIF(G71:AK71,\"حضور\")","v":18},{"$f":"COUNTIF(G71:AK71,\"بديل\")","v":0},{"$f":"COUNTIF(G71:AK71,\"$$$\")","v":0},{"$f":"COUNTIF(G71:AK71,\"اجازة\")","v":4},{"$f":"COUNTIF(G71:AK71,\"غياب\")","v":0}]
["A","الفرع 4","الصباحية",2,"عبد الرحمن عادل","فرد امن","حضور","بديل","بديل","بديل","حضور","حضور","حضور","حضور","حضور","حضور","حضور","حضور","حضور","حضور","حضور","حضور","حضور","حضور","حضور","حضور",null,null,null,null,null,null,null,null,null,null,null,17,3,0,0,0]
["A","الفرع 4","الصباحية",3,"خالد محمد مصطفى","فرد امن","حضور","حضور","حضور","حضور","حضور","حضور","حضور","حضور","حضور","حضور","حضور","اجازة","اجازة","اجازة","اجازة","حضور","حضور","حضور","حضور","حضور",null,null,null,null,null,null,null,null,null,null,null,16,0,0,4,0]
["A","الفرع 4","الصباحية","*","عمرو بلال رجب","بديل",null,null,null,null,null,null,null,null,null,null,null,null,"حضور","حضور","حضور","حضور",null,null,null,"حضور",null,null,null,null,null,null,null,null,null,null,null,5,0,0,0,0]
["A","الفرع 4","الصباحية","*","رضا عاشور ","بديل",null,null,null,null,null,null,"حضور",null,null,null,null,null,null,null,null,null,null,null,null,null,null,null,null,null,null,null,null,null,null,null,null,1,0,0,0,0]
["A","الفرع 4","الصباحية","*","بديل راحات","بديل",null,null,null,null,null,null,null,null,null,null,null,null,null,null,null,null,null,null,null,null,null,null,null,null,null,null,null,null,null,null,null,0,0,0,0,0]
["A","الفرع 4","الصباحية",4,"حمدى محمود النمكي","فرد امن","حضور","حضور","حضور","حضور","حضور","حضور","اجازة","حضور","حضور","ترك العمل","ترك العمل","ترك العمل","ترك العمل","ترك العمل","ترك العمل","ترك العمل","ترك العمل","ترك العمل","ترك العمل","ترك العمل","ترك العمل","ترك العمل","ترك العمل","ترك العمل","ترك العمل","ترك العمل","ترك العمل","ترك العمل","ترك العمل","ترك العمل","ترك العمل",8,0,0,1,0]
["A","الفرع 4","الصباحية",null,"عبدالرحمن عمرو كامل","بديل",null,null,null,null,null,null,null,null,null,null,null,null,"حضور","اجازة",null,null,null,null,null,null,null,null,null,null,null,null,null,null,null,null,null,1,0,0,1,0]
["A","الفرع 4","الصباحية",null,"محمد مصطفى عبدالفتاح ","بديل",null,null,null,null,null,null,null,null,null,null,null,null,null,"حضور",null,null,null,null,null,null,null,null,null,null,null,null,null,null,null,null,null,1,0,0,0,0]
["A","الفرع 4","المسائية",1,"سليمان يونس سليمان","فرد امن","حضور","حضور","حضور","حضور","حضور","حضور","حضور","حضور","حضور","اجازة","اجازة","حضور","حضور","حضور","حضور","حضور","$$$","حضور","حضور","حضور",null,null,null,"اجازة",null,null,null,null,null,null,null,{"$f":"COUNTIF(G80:AK80,\"حضور\")","v":17},{"$f":"COUNTIF(G80:AK80,\"بديل\")","v":0},{"$f":"COUNTIF(G80:AK80,\"$$$\")","v":1},{"$f":"COUNTIF(G80:AK80,\"اجازة\")","v":3},{"$f":"COUNTIF(G80:AK80,\"غياب\")","v":0}]
["A","الفرع 4","المسائية",2,"خالد عبد الشافى","فرد امن","حضور","حضور","حضور","اجازة","غياب","حضور","حضور","حضور","غياب","غياب","غياب","اجازة","حضور","حضور","حضور","حضور","حضور","حضور","حضور","حضور",null,null,null,null,null,null,null,null,null,null,null,14,0,0,2,4]
["A","الفرع 4","المسائية",3,"سلطان عبد العال","فرد امن","حضور","اجازة","حضور","حضور","حضور","حضور","حضور","حضور","اجازة","حضور","حضور","حضور","حضور","حضور","حضور","حضور","حضور","حضور","حضور","حضور",null,null,"اجازة",null,null,null,null,null,null,null,null,18,0,0,3,0]
["A","الفرع 4","المسائية","*","ايمن عبد الفتاح","بديل",null,null,"اجازة",null,null,"اجازة",null,"اجازة",null,"اجازة","اجازة","اجازة","اجازة","اجازة",null,null,null,null,null,null,null,null,null,null,null,null,null,null,null,null,null,0,0,0,8,0]
["A","الفرع 4","المسائية","*","احمد اسامة","بديل",null,null,null,null,null,null,null,null,null,"حضور",null,null,null,null,null,null,null,null,null,null,null,null,null,null,null,null,null,null,null,null,null,1,0,0,0,0]
["B","الفرع 5","الصباحية",1,"اشرف محمد محمود","فرد امن","حضور","حضور","حضور","حضور","حضور","حضور","حضور","حضور","حضور","حضور","حضور","حضور","حضور","حضور","حضور","حضور","حضور","حضور","حضور","حضور",null,null,null,"اجازة","اجازة",null,null,null,null,null,null,{"$f":"COUNTIF(G85:AK85,\"حضور\")","v":20},{"$f":"COUNTIF(G85:AK85,\"بديل\")","v":0},{"$f":"COUNTIF(G85:AK85,\"$$$\")","v":0},{"$f":"COUNTIF(G85:AK85,\"اجازة\")","v":2},{"$f":"COUNTIF(G85:AK85,\"غياب\")","v":0}]
["B","الفرع 5","الصباحية",2,"عمرو عبد السلام","فرد امن",null,null,null,"حضور","حضور","حضور","حضور",null,"حضور","حضور","اجازة","حضور","حضور","حضور","حضور","حضور","حضور","اجازة","حضور","حضور",null,null,null,null,null,null,null,null,null,null,null,14,0,0,2,0]
["B","الفرع 5","الصباحية","*",null,"بديل",null,null,null,null,null,null,null,null,null,null,null,null,null,null,null,null,null,null,null,null,null,null,null,null,null,null,null,null,null,null,null,0,0,0,0,0]
["B","الفرع 5","الصباحية","*","اسامة راغب","بديل","حضور","حضور","حضور",null,null,null,null,null,null,null,null,null,null,null,null,null,null,null,null,null,null,null,null,null,null,null,null,null,null,null,null,3,0,0,0,0]
["B","الفرع 5","المسائية",1,"فتحى بكر","فرد امن","حضور","حضور","اجازة","اجازة","حضور","حضور","حضور","حضور","حضور","حضور","حضور","حضور","حضور","حضور","حضور","حضور","$$$","اجازة","حضور","حضور",null,null,null,null,null,null,null,null,null,null,null,{"$f":"COUNTIF(G89:AK89,\"حضور\")","v":16},{"$f":"COUNTIF(G89:AK89,\"بديل\")","v":0},{"$f":"COUNTIF(G89:AK89,\"$$$\")","v":1},{"$f":"COUNTIF(G89:AK89,\"اجازة\")","v":3},{"$f":"COUNTIF(G89:AK89,\"غياب\")","v":0}]
["B","الفرع 5","المسائية",2,"احمد اسماعيل","فرد امن","حضور","حضور","حضور","حضور","حضور","حضور","حضور","حضور","حضور","اجازة","اجازة","حضور","حضور","حضور","حضور","حضور","حضور","حضور","حضور","حضور",null,null,null,"اجازة","اجازة",null,null,null,null,null,null,18,0,0,4,0]
["B","الفرع 5","المسائية","*","يوسف محمد وحيد","بديل",null,null,null,"حضور","اجازة","اجازة",null,"اجازة",null,"اجازة","اجازة","اجازة","اجازة","اجازة","اجازة","اجازة","اجازة","اجازة","اجازة","اجازة","اجازة","اجازة","اجازة","اجازة","اجازة","اجازة","اجازة","اجازة","اجازة","اجازة","اجازة",1,0,0,25,0]
["B","الفرع 6","الصباحية",1,"عبد الرحمن عبد الحميد غانم","فرد امن","اجازة","حضور","حضور","حضور","حضور","حضور","حضور","حضور","حضور","حضور","حضور","اجازة","اجازة","حضور","حضور","حضور","حضور","حضور","حضور","حضور",null,null,null,"اجازة",null,null,null,null,null,null,null,{"$f":"COUNTIF(G92:AK92,\"حضور\")","v":17},{"$f":"COUNTIF(G92:AK92,\"بديل\")","v":0},{"$f":"COUNTIF(G92:AK92,\"$$$\")","v":0},{"$f":"COUNTIF(G92:AK92,\"اجازة\")","v":4},{"$f":"COUNTIF(G92:AK92,\"غياب\")","v":0}]
["B","الفرع 6","الصباحية ",2,"محمود سعيد محمد","فرد امن",null,null,null,null,null,null,"حضور","حضور","حضور","حضور","حضور","حضور","حضور","حضور","حضور","حضور","حضور","حضور","حضور","حضور",null,null,null,null,null,null,null,null,null,null,null,14,0,0,0,0]
["B","الفرع 6","الصباحية","*","رضا عاشور ","بديل",null,null,null,"اجازة","اجازة","حضور",null,"اجازة",null,"اجازة",null,"اجازة","حضور",null,null,null,null,null,null,null,null,null,null,null,null,null,null,null,null,null,null,2,0,0,5,0]
["B","الفرع 6","الصباحية","*","عمرو عبد السلام","بديل","حضور",null,null,null,null,null,null,null,null,null,null,null,null,null,null,null,null,null,null,null,null,null,null,null,null,null,null,null,null,null,null,1,0,0,0,0]
["B","الفرع 6","الصباحية",null,"هشام ابو زيد عبد الباقى","فرد امن","حضور","حضور","حضور","حضور","ترك العمل","ترك العمل","ترك العمل","ترك العمل","ترك العمل","ترك العمل","ترك العمل","ترك العمل","ترك العمل","ترك العمل","ترك العمل","ترك العمل","ترك العمل","ترك العمل","ترك العمل","ترك العمل","ترك العمل","ترك العمل","ترك العمل","ترك العمل","ترك العمل","ترك العمل","ترك العمل","ترك العمل","ترك العمل","ترك العمل","ترك العمل",4,0,0,0,0]
["B","الفرع 6","المسائية",1,"فتحى ماهر محمد","فرد امن","حضور","اجازة","حضور","حضور","حضور","حضور","حضور","حضور","حضور","حضور","حضور","حضور","حضور","حضور","حضور","اجازة","اجازة","حضور","حضور","حضور",null,"اجازة","اجازة","اجازة",null,null,null,null,null,null,null,{"$f":"COUNTIF(G97:AK97,\"حضور\")","v":17},{"$f":"COUNTIF(G97:AK97,\"بديل\")","v":0},{"$f":"COUNTIF(G97:AK97,\"$$$\")","v":0},{"$f":"COUNTIF(G97:AK97,\"اجازة\")","v":6},{"$f":"COUNTIF(G97:AK97,\"غياب\")","v":0}]
["B","الفرع 6","المسائية",2,"احمد على عبد الرحمن","فرد امن","حضور","حضور","حضور","حضور","حضور","حضور","حضور","حضور","حضور","اجازة","اجازة","حضور","حضور","حضور","حضور","حضور","حضور","حضور","حضور","حضور",null,null,null,null,"اجازة","اجازة",null,null,null,null,null,18,0,0,4,0]
["B","الفرع 6","المسائية","*","بديل راحات","بديل",null,null,null,null,null,null,null,null,null,null,null,null,null,null,null,null,null,null,null,null,null,null,null,null,null,null,null,null,null,null,null,0,0,0,0,0]
["B","الفرع 7","الصباحية",1,"اسلام عبد المنصف محمد","فرد امن","حضور","حضور","حضور","اجازة","اجازة","حضور","حضور","حضور","اجازة","حضور","حضور","اجازة","حضور","اجازة","حضور","اجازة","حضور","حضور","اجازة","حضور","اجازة",null,null,null,null,null,null,null,null,null,null,{"$f":"COUNTIF(G100:AK100,\"حضور\")","v":13},{"$f":"COUNTIF(G100:AK100,\"بديل\")","v":0},{"$f":"COUNTIF(G100:AK100,\"$$$\")","v":0},{"$f":"COUNTIF(G100:AK100,\"اجازة\")","v":8},{"$f":"COUNTIF(G100:AK100,\"غياب\")","v":0}]
["B","الفرع 7","الصباحية",2,"محمد عبد الحميد عبد الحليم","فرد امن","حضور","حضور","حضور","حضور","حضور","اجازة","اجازة","اجازة","اجازة","حضور","حضور","حضور","حضور","حضور","حضور","حضور","حضور","حضور","حضور","حضور",null,null,null,null,null,null,null,null,null,null,null,16,0,0,4,0]
["B","الفرع 7","الصباحية",3,"احمد فاروق على","فرد امن","حضور","حضور","حضور","حضور","حضور","حضور","حضور","حضور","حضور","حضور","حضور","حضور","حضور","حضور","حضور","حضور","حضور","اجازة","اجازة","اجازة","اجازة","اجازة","اجازة",null,null,null,null,null,null,null,null,17,0,0,6,0]
["B","الفرع 7","الصباحية","*","هيثم احمد محمود","بديل",null,null,null,null,null,null,null,null,null,null,null,null,null,null,null,null,null,"حضور","حضور","حضور",null,null,null,null,null,null,null,null,null,null,null,3,0,0,0,0]
["B","الفرع 7","الصباحية","*","عمرو بلال رجب","بديل",null,null,null,null,null,null,null,null,null,null,null,null,null,null,null,null,null,null,"حضور",null,null,null,null,null,null,null,null,null,null,null,null,1,0,0,0,0]
["B","الفرع 7","الصباحية","*","رضا عاشور ","بديل",null,null,null,null,null,null,null,null,"حضور",null,null,null,null,null,null,null,null,null,null,null,null,null,null,null,null,null,null,null,null,null,null,1,0,0,0,0]
["B","الفرع 7","الصباحية","*","عمرو عبد السلام","بديل",null,null,null,"حضور",null,null,null,"حضور",null,null,null,null,null,null,null,null,null,null,null,null,null,null,null,null,null,null,null,null,null,null,null,2,0,0,0,0]
["B","الفرع 7","الصباحية","*","اسامة صادق","بديل",null,null,"اجازة",null,"حضور","حضور","حضور",null,null,"اجازة",null,null,null,null,null,"حضور","اجازة",null,"اجازة",null,null,null,null,null,null,null,null,null,null,null,"اجازة",4,0,0,5,0]
["B","الفرع 7","المسائية",1,"محمد دسوقى","فرد امن","حضور","حضور","اجازة","حضور","حضور","حضور","حضور","حضور","حضور","اجازة","حضور","حضور","حضور","حضور","حضور","حضور","اجازة","حضور","حضور","حضور",null,null,null,"اجازة",null,null,null,null,null,null,"اجازة",{"$f":"COUNTIF(G108:AK108,\"حضور\")","v":17},{"$f":"COUNTIF(G108:AK108,\"بديل\")","v":0},{"$f":"COUNTIF(G108:AK108,\"$$$\")","v":0},{"$f":"COUNTIF(G108:AK108,\"اجازة\")","v":5},{"$f":"COUNTIF(G108:AK108,\"غياب\")","v":0}]
["B","الفرع 7","المسائية",3,"هانى محمود حافظ","فرد امن","حضور","اجازة","حضور","حضور","حضور","حضور","حضور","حضور","حضور","حضور","اجازة","حضور","حضور","حضور","حضور","حضور","حضور","اجازة","حضور","حضور",null,null,null,null,"اجازة",null,null,null,null,null,null,17,0,0,4,0]
["B","الفرع 7","المسائية",2,"سيد عبد الوهاب عبد السلام","فرد امن","حضور","حضور","حضور","حضور","حضور","حضور","حضور","حضور","حضور","حضور","حضور","حضور","حضور","حضور","حضور","حضور","حضور","حضور","حضور","حضور",null,null,null,null,null,null,null,null,null,null,null,20,0,0,0,0]
["B","الفرع 7","المسائية",null,"يحيى شعبان ","بديل",null,null,null,null,null,null,null,null,null,null,null,null,null,null,null,null,"حضور","حضور",null,null,null,null,null,null,null,null,null,null,null,null,null,2,0,0,0,0]
["B","الفرع 7","المسائية",null,null,"بديل",null,null,null,null,null,null,null,null,null,null,null,null,null,null,null,null,null,null,null,null,null,null,null,null,null,null,null,null,null,null,null,0,0,0,0,0]
["B","الفرع 8","الصباحية",1,"عمرو احمد ","فرد امن",null,"حضور","حضور","حضور","حضور","حضور","حضور","حضور","حضور","حضور","حضور","اجازة","حضور","حضور","حضور","حضور","حضور","حضور","حضور","اجازة",null,null,null,null,null,"اجازة",null,null,null,null,null,{"$f":"COUNTIF(G113:AK113,\"حضور\")","v":17},{"$f":"COUNTIF(G113:AK113,\"بديل\")","v":0},{"$f":"COUNTIF(G113:AK113,\"$$$\")","v":0},{"$f":"COUNTIF(G113:AK113,\"اجازة\")","v":3},{"$f":"COUNTIF(G113:AK113,\"غياب\")","v":0}]
["B","الفرع 8","الصباحية","*","اسامة صادق","بديل","حضور",null,"اجازة",null,null,null,null,null,null,"اجازة",null,"حضور",null,null,null,null,"اجازة",null,"اجازة","حضور",null,null,null,null,null,null,null,null,null,null,"اجازة",3,0,0,5,0]
["B","الفرع 8","المسائية",1,"احمد عزازى","فرد امن","حضور","حضور","اجازة","حضور","حضور","حضور","حضور","حضور","حضور","اجازة","غياب","حضور","حضور","حضور","حضور","حضور","حضور","حضور","حضور","حضور",null,null,null,"اجازة",null,null,null,null,null,null,"اجازة",{"$f":"COUNTIF(G115:AK115,\"حضور\")","v":17},{"$f":"COUNTIF(G115:AK115,\"بديل\")","v":0},{"$f":"COUNTIF(G115:AK115,\"$$$\")","v":0},{"$f":"COUNTIF(G115:AK115,\"اجازة\")","v":4},{"$f":"COUNTIF(G115:AK115,\"غياب\")","v":1}]
["B","الفرع 8","المسائية","*","احمد اسامة","بديل",null,null,null,null,null,null,null,null,null,null,"حضور",null,null,null,null,null,null,null,null,null,null,null,null,null,null,null,null,null,null,null,null,1,0,0,0,0]
["B","الفرع 8","المسائية","*","محمود محروس","بديل",null,null,"حضور",null,null,null,null,null,null,"حضور",null,null,null,null,null,null,null,null,null,null,null,null,null,null,null,null,null,null,null,null,null,2,0,0,0,0]
["B","الفرع 9","الصباحية",1,"حسين محمد","فرد امن","حضور","حضور","حضور","حضور","حضور","حضور","حضور","حضور","حضور","حضور","حضور","حضور","حضور","حضور","اجازة","اجازة","اجازة","اجازة","حضور","حضور",null,null,null,null,null,null,null,null,null,null,null,{"$f":"COUNTIF(G118:AK118,\"حضور\")","v":16},{"$f":"COUNTIF(G118:AK118,\"بديل\")","v":0},{"$f":"COUNTIF(G118:AK118,\"$$$\")","v":0},{"$f":"COUNTIF(G118:AK118,\"اجازة\")","v":4},{"$f":"COUNTIF(G118:AK118,\"غياب\")","v":0}]
["B","الفرع 9","الصباحية",2,"اكرم بكري محمد مصطفى","فرد امن","حضور","حضور","حضور","حضور","حضور","حضور","حضور","اجازة","اجازة","اجازة","اجازة","حضور","حضور","حضور","حضور","حضور","حضور","حضور","حضور","حضور",null,null,null,null,null,null,null,null,null,null,null,16,0,0,4,0]
["B","الفرع 9","الصباحية","*","عمرو بلال رجب","بديل",null,null,null,null,null,null,null,null,null,null,null,null,null,null,null,null,"حضور","حضور",null,null,null,null,null,null,null,null,null,null,null,null,null,2,0,0,0,0]
["B","الفرع 9","الصباحية","*","يوسف محمد وحيد","بديل",null,null,null,null,"اجازة","اجازة",null,"اجازة","حضور","اجازة","اجازة","اجازة","اجازة","اجازة","اجازة","اجازة","اجازة","اجازة","اجازة","اجازة","اجازة","اجازة","اجازة","اجازة","اجازة","اجازة","اجازة","اجازة","اجازة","اجازة","اجازة",1,0,0,25,0]
["B","الفرع 9","الصباحية","*","رضا عاشور ","بديل",null,null,null,null,null,null,null,null,null,null,null,null,null,"حضور","حضور","حضور",null,null,null,null,null,null,null,null,null,null,null,null,null,null,null,3,0,0,0,0]
["B","الفرع 9","المسائية",1,"محمود محروس","فرد امن","حضور","حضور","بديل","اجازة","حضور","حضور","غياب","حضور","حضور","بديل","اجازة","حضور","حضور","حضور","حضور","حضور","حضور","اجازة","حضور","حضور",null,null,null,null,"اجازة",null,null,null,null,null,null,{"$f":"COUNTIF(G123:AK123,\"حضور\")","v":14},{"$f":"COUNTIF(G123:AK123,\"بديل\")","v":2},{"$f":"COUNTIF(G123:AK123,\"$$$\")","v":0},{"$f":"COUNTIF(G123:AK123,\"اجازة\")","v":4},{"$f":"COUNTIF(G123:AK123,\"غياب\")","v":1}]
["B","الفرع 9","المسائية",2,"حسين عبد العال","فرد امن","حضور","حضور","حضور","حضور","حضور","حضور","حضور","حضور","حضور","حضور","حضور","حضور","حضور","حضور","حضور","حضور","حضور","حضور","حضور","حضور",null,null,null,null,null,null,null,null,null,null,null,20,0,0,0,0]
["B","الفرع 9","المسائية","*","بديل راحات",null,null,null,null,null,null,null,null,null,null,null,null,null,null,null,null,null,null,null,null,null,null,null,null,null,null,null,null,null,null,null,null,0,0,0,0,0]
["C","الفرع 10","الصباحية",1,"سيد محى الدين","فرد امن","حضور","حضور","حضور","حضور","حضور","حضور","حضور","حضور","حضور","حضور","اجازة","حضور","حضور","حضور","حضور","حضور","اجازة","حضور","حضور","حضور",null,null,null,null,null,null,"اجازة",null,null,null,"اجازة",{"$f":"COUNTIF(G126:AK126,\"حضور\")","v":18},{"$f":"COUNTIF(G126:AK126,\"بديل\")","v":0},{"$f":"COUNTIF(G126:AK126,\"$$$\")","v":0},{"$f":"COUNTIF(G126:AK126,\"اجازة\")","v":4},{"$f":"COUNTIF(G126:AK126,\"غياب\")","v":0}]
["C","الفرع 10","الصباحية",2,"قنديل ابو كريشة","فرد امن","حضور","اجازة","حضور","حضور","حضور","حضور","حضور","حضور","حضور","حضور","حضور","اجازة","حضور","حضور","حضور","حضور","حضور","حضور","حضور","اجازة",null,null,null,null,null,null,null,null,null,"اجازة",null,17,0,0,4,0]
["C","الفرع 10","الصباحية",3,"سليم محروس","فرد امن","اجازة","حضور","حضور","حضور","غياب","حضور","حضور","حضور","حضور","حضور","حضور","حضور","غياب","حضور","حضور","حضور","حضور","حضور","حضور","حضور",null,"اجازة",null,null,null,null,null,null,null,null,null,17,0,0,2,2]
["C","الفرع 10","الصباحية","*","رضا عاشور ","بديل",null,"حضور",null,null,null,null,null,null,null,null,null,null,null,null,null,null,"حضور",null,null,"حضور",null,null,null,null,null,null,null,null,null,null,null,3,0,0,0,0]
["C","الفرع 10","الصباحية","*",null,"بديل",null,null,null,null,null,null,null,null,null,null,null,null,null,null,null,null,null,null,null,null,null,null,null,null,null,null,null,null,null,null,null,0,0,0,0,0]
["C","الفرع 10","المسائية",1,"احمد السيد مقدام","فرد امن","حضور","حضور","اجازة","حضور","حضور","حضور","حضور","حضور","حضور","اجازة","حضور","حضور","حضور","حضور","حضور","حضور","اجازة","حضور","حضور","حضور",null,null,null,"اجازة",null,null,null,null,null,null,"اجازة",{"$f":"COUNTIF(G131:AK131,\"حضور\")","v":17},{"$f":"COUNTIF(G131:AK131,\"بديل\")","v":0},{"$f":"COUNTIF(G131:AK131,\"$$$\")","v":0},{"$f":"COUNTIF(G131:AK131,\"اجازة\")","v":5},{"$f":"COUNTIF(G131:AK131,\"غياب\")","v":0}]
["C","الفرع 10","المسائية",2,"شهاب الدين فرجانى","فرد امن","حضور","اجازة","حضور","حضور","حضور","حضور","اجازة","حضور","حضور","حضور","غياب","حضور","حضور","حضور","حضور","حضور","حضور","حضور","اجازة","حضور",null,null,null,null,null,null,null,null,null,null,null,16,0,0,3,1]
["C","الفرع 10","المسائية",3,"كمال صابر انور","فرد امن","حضور","حضور","حضور","حضور","حضور","حضور","حضور","حضور","غياب","حضور","حضور","حضور","حضور","اجازة","غياب","غياب","حضور","حضور","حضور","حضور",null,null,null,null,null,null,null,null,null,null,null,16,0,0,1,3]
["C","الفرع 10","المسائية","*","ايمن عبد الفتاح ","بديل",null,null,"اجازة",null,null,"اجازة","حضور","اجازة",null,"اجازة","اجازة","اجازة","اجازة","اجازة",null,"حضور","حضور",null,"حضور",null,null,null,null,null,null,null,null,null,null,null,null,4,0,0,8,0]
["C","الفرع 11","الصباحية",1,"هشام دياب","فرد امن","حضور","حضور","حضور","حضور","حضور","حضور","حضور","حضور","حضور","حضور","حضور","حضور","حضور","حضور","حضور","حضور","حضور","حضور","اجازة","حضور","اجازة",null,null,null,null,"اجازة",null,null,null,null,null,{"$f":"COUNTIF(G135:AK135,\"حضور\")","v":19},{"$f":"COUNTIF(G135:AK135,\"بديل\")","v":0},{"$f":"COUNTIF(G135:AK135,\"$$$\")","v":0},{"$f":"COUNTIF(G135:AK135,\"اجازة\")","v":3},{"$f":"COUNTIF(G135:AK135,\"غياب\")","v":0}]
["C","الفرع 11","الصباحية",2,"عبد العليم السيد","فرد امن","حضور","اجازة","اجازة","حضور","حضور","حضور","حضور","حضور","حضور","حضور","اجازة","حضور","حضور","حضور","حضور","حضور","حضور","اجازة","حضور","حضور",null,null,null,null,"اجازة",null,null,null,null,null,null,16,0,0,5,0]
["C","الفرع 11","الصباحية","*","رضا عاشور ","بديل",null,null,null,null,null,null,null,null,null,null,"حضور",null,null,null,null,null,null,"حضور","حضور",null,null,null,null,null,null,null,null,null,null,null,null,3,0,0,0,0]
["C","الفرع 11","الصباحية","*","عمرو عبد السلام","بديل",null,"حضور","حضور",null,null,null,null,null,null,null,null,null,null,null,null,null,null,null,null,null,null,null,null,null,null,null,null,null,null,null,null,2,0,0,0,0]
["C","الفرع 11","المسائية",1,"هانى عبد الجواد","فرد امن","حضور","حضور","حضور","حضور","اجازة","حضور","حضور","حضور","حضور","حضور","حضور","اجازة","حضور","حضور","حضور","حضور","حضور","حضور","اجازة","حضور",null,null,null,null,null,"اجازة",null,null,null,null,null,{"$f":"COUNTIF(G139:AK139,\"حضور\")","v":17},{"$f":"COUNTIF(G139:AK139,\"بديل\")","v":0},{"$f":"COUNTIF(G139:AK139,\"$$$\")","v":0},{"$f":"COUNTIF(G139:AK139,\"اجازة\")","v":4},{"$f":"COUNTIF(G139:AK139,\"غياب\")","v":0}]
["C","الفرع 11","المسائية",2,"محمود عبد الهادى","فرد امن","حضور","اجازة","حضور","حضور","حضور","حضور","حضور","حضور","اجازة","حضور","حضور","حضور","حضور","حضور","حضور","اجازة","حضور","حضور","حضور","حضور",null,null,"اجازة",null,null,null,null,null,null,"اجازة",null,17,0,0,5,0]
["C","الفرع 11","المسائية","*","يحيى شعبان","بديل",null,null,null,null,null,null,null,null,null,null,null,"حضور",null,null,null,"حضور",null,null,"حضور",null,null,null,null,null,null,null,null,null,null,null,null,3,0,0,0,0,"2026-12-07"]
["C","الفرع 11","المسائية","*","ايمن عبد الفتاح","بديل",null,"حضور","اجازة",null,"حضور","اجازة",null,"اجازة","حضور","اجازة","اجازة","اجازة","اجازة","اجازة",null,null,null,null,null,null,null,null,null,null,null,null,null,null,null,null,null,3,0,0,8,0]
["C","الفرع 11","المسائية","*",null,"بديل",null,null,null,null,null,null,null,null,null,null,null,null,null,null,null,null,null,null,null,null,null,null,null,null,null,null,null,null,null,null,null,0,0,0,0,0]
["C","الفرع 12","الصباحية",1,"خاطر عبد الفتاح","فرد امن","حضور","حضور","حضور","حضور","حضور","حضور","حضور","اجازة","اجازة","حضور","حضور","حضور","حضور","حضور","حضور","حضور","حضور","حضور","حضور","حضور",null,"اجازة","اجازة",null,null,null,null,null,null,null,null,{"$f":"COUNTIF(G144:AK144,\"حضور\")","v":18},{"$f":"COUNTIF(G144:AK144,\"بديل\")","v":0},{"$f":"COUNTIF(G144:AK144,\"$$$\")","v":0},{"$f":"COUNTIF(G144:AK144,\"اجازة\")","v":4},{"$f":"COUNTIF(G144:AK144,\"غياب\")","v":0}]
["C","الفرع 12","الصباحية","*","اسامة صادق","بديل",null,null,"اجازة",null,null,null,null,"حضور","حضور","اجازة",null,null,null,null,null,null,"اجازة",null,"اجازة",null,null,null,null,null,null,null,null,null,null,null,"اجازة",2,0,0,5,0]
["C","الفرع 12","الصباحية","*",null,"بديل",null,null,null,null,null,null,null,null,null,null,null,null,null,null,null,null,null,null,null,null,null,null,null,null,null,null,null,null,null,null,null,0,0,0,0,0]
["C","الفرع 12","المسائية",1,"ايمن صادق","فرد امن","حضور","حضور","حضور","حضور","حضور","حضور","حضور","حضور","حضور","حضور","حضور","حضور","حضور","حضور","حضور","حضور","حضور","حضور","حضور","حضور",null,null,null,null,null,null,null,null,null,null,null,{"$f":"COUNTIF(G147:AK147,\"حضور\")","v":20},{"$f":"COUNTIF(G147:AK147,\"بديل\")","v":0},{"$f":"COUNTIF(G147:AK147,\"$$$\")","v":0},{"$f":"COUNTIF(G147:AK147,\"اجازة\")","v":0},{"$f":"COUNTIF(G147:AK147,\"غياب\")","v":0}]
["C","الفرع 12","المسائية","*","بديل راحات","بديل",null,null,null,null,null,null,null,null,null,null,null,null,null,null,null,null,null,null,null,null,null,null,null,null,null,null,null,null,null,null,null,0,0,0,0,0]
["C","الفرع 13","الصباحية",1,"محمد عاشور محمد","فرد امن","حضور","حضور","حضور","حضور","حضور","حضور","حضور","حضور","اجازة","اجازة","حضور","حضور","حضور","حضور","حضور","حضور","حضور","حضور","حضور","حضور","اجازة","اجازة",null,null,null,null,null,null,null,null,null,{"$f":"COUNTIF(G149:AK149,\"حضور\")","v":18},{"$f":"COUNTIF(G149:AK149,\"بديل\")","v":0},{"$f":"COUNTIF(G149:AK149,\"$$$\")","v":0},{"$f":"COUNTIF(G149:AK149,\"اجازة\")","v":4},{"$f":"COUNTIF(G149:AK149,\"غياب\")","v":0}]
["C","الفرع 13","الصباحية",2,"محمد فايز ","فرد امن","منقول","منقول","منقول","منقول","حضور","حضور","حضور","حضور","حضور","حضور","حضور","حضور","اجازة","اجازة","حضور","حضور","حضور","حضور","حضور","حضور",null,null,null,null,null,"اجازة",null,null,null,null,null,14,0,0,3,0]
["C","الفرع 13","الصباحية",3,"اسامة راغب","فرد امن","منقول","منقول","منقول","اجازة","حضور","حضور","حضور","حضور","حضور","حضور","حضور","حضور","حضور","حضور","حضور","حضور","حضور","اجازة","حضور","حضور",null,null,null,null,null,null,null,null,null,null,null,15,0,0,2,0]
["C","الفرع 13","الصباحية","*","اسامة صادق","بديل",null,null,"اجازة",null,null,null,null,null,null,"اجازة",null,null,"حضور","حضور",null,null,"اجازة","حضور","اجازة",null,null,null,null,null,null,null,null,null,null,null,"اجازة",3,0,0,5,0]
["C","الفرع 13","الصباحية","*",null,"بديل",null,null,null,null,null,null,null,null,null,null,null,null,null,null,null,null,null,null,null,null,null,null,null,null,null,null,null,null,null,null,null,0,0,0,0,0]
["C","الفرع 13","المسائية",1,"محمد احمد حسين","فرد امن","حضور","حضور","اجازة","حضور","حضور","حضور","حضور","حضور","اجازة","حضور","حضور","حضور","حضور","حضور","حضور","اجازة","حضور","حضور","حضور","حضور",null,null,"اجازة","اجازة",null,null,null,null,null,null,null,{"$f":"COUNTIF(G154:AK154,\"حضور\")","v":17},{"$f":"COUNTIF(G154:AK154,\"بديل\")","v":0},{"$f":"COUNTIF(G154:AK154,\"$$$\")","v":0},{"$f":"COUNTIF(G154:AK154,\"اجازة\")","v":5},{"$f":"COUNTIF(G154:AK154,\"غياب\")","v":0}]
["C","الفرع 13","المسائية",2,"احمد سمير عبد اللطيف","فرد امن","منقول","منقول","منقول","منقول","حضور","حضور","حضور","حضور","حضور","حضور","حضور","اجازة","حضور","حضور","اجازة","حضور","حضور","حضور","حضور","حضور",null,null,null,null,null,null,null,null,null,null,null,14,0,0,2,0]
["C","الفرع 13","المسائية",3,"احمد رضوان قرني","فرد امن",null,null,null,null,null,"حضور","حضور","حضور","حضور","حضور","حضور","حضور","حضور","حضور","حضور","حضور","حضور","حضور","حضور","حضور",null,null,null,null,null,null,null,null,null,null,null,15,0,0,0,0]
["C","الفرع 13","المسائية","*","ايمن عبد الفتاح ","بديل",null,null,"اجازة",null,null,"اجازة",null,"اجازة",null,"اجازة","اجازة","اجازة","اجازة","اجازة","حضور",null,null,null,null,null,null,null,null,null,null,null,null,null,null,null,null,1,0,0,8,0]
["C","الفرع 13","المسائية","*","يوسف محمد وحيد","بديل",null,null,"حضور",null,"اجازة","اجازة",null,"اجازة",null,"اجازة","اجازة","اجازة","اجازة","اجازة","اجازة","اجازة","اجازة","اجازة","اجازة","اجازة","اجازة","اجازة","اجازة","اجازة","اجازة","اجازة","اجازة","اجازة","اجازة","اجازة","اجازة",1,0,0,25,0]

{"sheet":"البحث","index":2,"n_rows":25,"n_cols":11,"rows_kept":25,"cut":false,"hidden":false,"merged":[]}
[]
[null,null,"البحث","الحالة","حضور"]
[null,null,null,"التاريخ",null,null,null,null,null,null,"مطلوب عمل بحث لايام الاجازة من جدول (مسير)اجازات الورديات"]
[null,null,null,"الفرع","الفرع 2",null,null,null,null,null,"طبقا لمعامل البحث سواء"]
[null,null,null,"الوردية","الصباحية",null,null,null,null,null,"يوم / الفرع /الوردية /الاسم"]
[null,null,null,"الاسم","مدحت عبد الغنى"]
[]
[null,null,"المنطقة","الفرع","الوردية","الاسم","اليوم","التاريخ"]
[null,null,"A","الفرع 2","الصباحية","مدحت عبد الغنى","2026-07-01","Wed"]
[null,null,"A","الفرع 2","الصباحية","مدحت عبد الغنى","2026-07-05","Sun"]
[null,null,"A","الفرع 2","الصباحية","مدحت عبد الغنى","2026-07-06","Mon"]
[null,null,"A","الفرع 2","الصباحية","مدحت عبد الغنى","2026-07-07","Tue"]
[null,null,"A","الفرع 2","الصباحية","مدحت عبد الغنى","2026-07-08","Wed"]
[null,null,"A","الفرع 2","الصباحية","مدحت عبد الغنى","2026-07-09","Thu"]
[null,null,"A","الفرع 2","الصباحية","مدحت عبد الغنى","2026-07-10","Fri"]
[null,null,"A","الفرع 2","الصباحية","مدحت عبد الغنى","2026-07-11","Sat"]
[null,null,"A","الفرع 2","الصباحية","مدحت عبد الغنى","2026-07-12","Sun"]
[null,null,"A","الفرع 2","الصباحية","مدحت عبد الغنى","2026-07-13","Mon"]
[null,null,"A","الفرع 2","الصباحية","مدحت عبد الغنى","2026-07-14","Tue"]
[null,null,"A","الفرع 2","الصباحية","مدحت عبد الغنى","2026-07-15","Wed"]
[null,null,"A","الفرع 2","الصباحية","مدحت عبد الغنى","2026-07-16","Thu"]
[null,null,"A","الفرع 2","الصباحية","مدحت عبد الغنى","2026-07-17","Fri"]
[null,null,"A","الفرع 2","الصباحية","مدحت عبد الغنى","2026-07-18","Sat"]
[null,null,"A","الفرع 2","الصباحية","مدحت عبد الغنى","2026-07-19","Sun"]
[null,null,"A","الفرع 2","الصباحية","مدحت عبد الغنى","2026-07-20","Mon"]